bitfinex/quotes_ETHUSD_20251217
["timestamp","ask_amount","ask_price","bid_price","bid_amount"]
[1765960519936,0.8045,2931.6,2931.5,0.002]
[1765960521814,4.63736155,2931.6,2931.5,0.002]
[1765960523336,1.22625499,2931.6,2931.5,0.002]
[1765960525509,0.8045,2931.6,2931.5,0.002]
[1765960529441,0.4867,2931.6,2931.5,0.002]
[1765960530426,0.001,2931.7,2931.5,0.002]
[1765960530948,0.485,2931.6,2931.5,0.002]
[1765960531126,0.8044,2931.6,2931.5,0.002]
[1765960533959,0.001,2931.7,2931.5,0.002]
[1765960534326,0.4614,2931.6,2931.5,0.002]
[1765960534639,0.8042,2931.6,2931.5,0.002]
[1765960535258,0.4614,2931.6,2931.5,0.002]
[1765960535432,0.4602,2931.6,2931.5,0.002]
[1765960536531,0.001,2931.7,2931.6,0.4728]
[1765960536753,0.001,2931.7,2931.6,0.9643]
[1765960537545,0.001,2931.7,2931.6,4.91640656]
[1765960537859,0.001,2931.7,2931.6,6.1827274]
[1765960538236,0.001,2931.7,2931.6,6.21683846]
[1765960538441,0.001,2931.7,2931.6,15.03650669]
[1765960538642,0.001,2931.7,2931.6,10.84180716]
[1765960540170,0.001,2931.7,2931.6,6.10610763]
[1765960540331,0.001,2931.7,2931.6,6.1827274]
[1765960540537,0.001,2931.7,2931.6,6.10610763]
[1765960540845,0.001,2931.7,2931.6,6.64710763]
[1765960545204,0.001,2931.7,2931.6,6.10610763]
[1765960545376,0.001,2931.7,2931.6,6.64710763]
[1765960548988,0.001,2931.7,2931.6,10.84180716]
[1765960549292,0.4541,2931.7,2931.6,3.95210656]
[1765960549462,0.001,2931.7,2931.6,4.43000656]
[1765960549662,0.001,2931.7,2931.6,4.88570656]
[1765960549873,0.001,2931.7,2931.6,4.8959837]
[1765960550273,0.001,2931.7,2931.6,5.72813165]
[1765960550883,0.001,2931.7,2931.6,6.22662294]
[1765960551079,0.001,2931.7,2931.6,6.19251188]
[1765960553489,0.001,2931.7,2931.6,5.72813165]
[1765960555762,0.001,2931.7,2931.6,6.22662294]
[1765960556165,0.001,2931.7,2931.6,6.19251188]
[1765960557200,0.001,2931.7,2931.6,5.65151188]
[1765960557494,0.001,2931.7,2931.6,6.19251188]
[1765960560300,0.001,2931.7,2931.6,5.72813165]
[1765960561205,0.001,2931.7,2931.5,0.002]
[1765960561409,0.001,2931.7,2931.5,3.41322292]
[1765960561700,0.001,2931.7,2931.6,4.34470656]
[1765960561882,0.001,2931.7,2931.6,4.37881762]
[1765960562067,0.001,2931.7,2931.6,4.80908679]
[1765960562403,0.001,2931.7,2931.6,6.19135017]
[1765960562573,0.001,2931.7,2931.6,6.64705017]
[1765960562771,0.001,2931.7,2931.5,0.002]
[1765960562772,0.4531,2931.6,2931.5,0.002]
[1765960562997,0.8279,2931.6,2931.5,0.002]
[1765960564713,8.43305795,2931.6,2931.5,0.002]
[1765960565019,9.6176629,2931.6,2931.5,0.002]
[1765960569614,0.4778,2931.5,2931.4,0.002]
[1765960569808,0.94218023,2931.5,2931.4,0.002]
[1765960570232,0.3503,2931.2,2931.1,0.002]
[1765960570391,9.43540367,2931.2,2931.1,0.002]
[1765960570715,10.72008971,2931.2,2931.1,0.002]
[1765960571223,10.72008971,2931.2,2930.4,0.002]
[1765960571224,0.6767,2930.6,2930.4,0.002]
[1765960571395,0.0072,2930.6,2930.4,3.4145025]
[1765960571798,0.4813,2930.6,2930.4,0.002]
[1765960574400,0.4813,2930.6,2930.4,3.41450263]
[1765960574600,0.4813,2930.6,2930.4,0.002]
[1765960575530,0.0072,2930.6,2930.4,0.002]
[1765960575720,0.0072,2930.6,2930.4,3.44858588]
[1765960576026,0.0072,2930.6,2930.4,0.002]
[1765960576227,0.0072,2930.6,2930.4,3.41445781]
[1765960576600,0.0072,2930.6,2930.4,0.002]
[1765960576801,0.0072,2930.6,2930.4,3.41449007]
[1765960577501,0.0072,2930.6,2930.4,0.002]
[1765960577734,0.4813,2930.6,2930.4,0.002]
[1765960578725,0.4813,2930.6,2930.4,3.41449684]
[1765960579431,0.4813,2930.6,2930.4,0.002]
[1765960579601,0.96891218,2930.6,2930.4,0.002]
[1765960580017,4.3811827,2930.6,2930.4,0.002]
[1765960580204,8.5806045,2930.6,2930.5,2.879e-05]
[1765960580418,0.3444,2930.5,2930.4,2.879e-05]
[1765960580733,0.3444,2930.5,2930.0,2.879e-05]
[1765960580734,0.8244,2930.1,2930.0,2.879e-05]
[1765960580930,0.6695,2929.9,2929.8,2.879e-05]
[1765960581133,5.98000933,2929.9,2929.8,2.879e-05]
[1765960581528,6.11681735,2929.9,2929.8,2.879e-05]
[1765960581702,10.31623915,2929.9,2929.8,2.879e-05]
[1765960582342,11.18612338,2929.9,2929.8,2.879e-05]
[1765960582936,34.86877915,2929.9,2929.8,2.879e-05]
[1765960583136,29.28057215,2929.9,2929.8,2.879e-05]
[1765960583439,29.28057215,2929.9,2929.1,0.002]
[1765960583440,0.8219,2929.2,2929.1,0.002]
[1765960583628,9.7617436,2929.2,2929.1,0.002]
[1765960583803,5.5623218,2929.2,2929.1,0.002]
[1765960584848,0.8219,2929.2,2929.1,0.002]
[1765960585131,0.349,2929.2,2929.1,0.4778]
[1765960585323,0.3503,2929.2,2929.1,0.002]
[1765960585922,0.8219,2929.2,2929.1,0.002]
[1765960586247,0.3503,2929.2,2929.1,0.002]
[1765960586410,0.4716,2929.5,2929.1,0.002]
[1765960587235,0.4741,2929.8,2929.1,0.1825]
[1765960587410,0.4741,2930.2,2929.1,1.59569241]
[1765960587742,0.4741,2930.0,2929.1,1.11108023]
[1765960587909,0.4741,2930.0,2929.2,0.4642]
[1765960588502,4.1994218,2929.7,2929.1,0.002]
[1765960588734,0.4741,2930.0,2929.1,0.002]
[1765960588735,0.8219,2929.2,2929.1,0.002]
[1765960589324,4.2358014,2929.2,2929.1,0.002]
[1765960589529,8.85880334,2929.2,2929.1,0.002]
[1765960590302,1.24548014,2929.2,2929.1,0.002]
[1765960590504,0.8219,2929.2,2929.1,0.002]
[1765960590805,0.8219,2929.2,2928.6,0.002]
[1765960590806,1.005,2928.7,2928.6,0.002]
[1765960591543,0.7364,2928.9,2928.6,0.002]
[1765960592249,1.2105,2928.9,2928.6,0.002]
[1765960592541,0.8082,2928.7,2928.6,0.002]
[1765960595353,0.3355,2928.7,2928.6,0.002]
[1765960595536,0.46438023,2929.3,2928.6,0.002]
[1765960595537,0.458,2929.1,2929.0,0.4963]
[1765960595734,0.542,2929.8,2929.1,0.1937]
[1765960596115,0.4874,2929.7,2928.6,0.46]
[1765960597148,3.41343528,2929.6,2928.7,6.82896848]
[1765960597358,0.344,2928.8,2928.7,3.41448424]
[1765960597560,0.344,2928.8,2928.6,0.002]
[1765960597561,0.4636,2929.2,2928.6,0.002]
[1765960597717,0.8064,2928.7,2928.6,0.002]
[1765960598641,0.8064,2928.7,2928.6,3.41660083]
[1765960599755,0.344,2928.7,2928.6,0.002]
[1765960600258,0.4636,2929.2,2928.6,0.4884]
[1765960600419,0.344,2928.7,2928.6,0.002]
[1765960600616,0.4624,2929.0,2928.6,0.002]
[1765960600828,0.3452,2928.7,2928.6,0.002]
[1765960601342,0.4624,2929.0,2928.6,0.002]
[1765960601757,1.0056,2929.3,2928.6,0.002]
[1765960601962,1.0056,2929.3,2928.6,0.4978]
[1765960602448,0.4636,2929.3,2928.6,0.4978]
[1765960603665,0.6618,2929.9,2928.7,0.4958]
[1765960603866,0.1982,2929.9,2928.9,0.4958]
[1765960604068,0.55932373,2929.9,2929.1,0.1927]
[1765960604241,0.1982,2929.9,2929.2,0.4958]
[1765960604564,0.4636,2929.8,2928.9,1.0738903]
[1765960604768,0.4636,2929.8,2928.8,6.8287353]
[1765960605674,0.4636,2929.8,2928.8,7.3245353]
[1765960605963,0.4539266,2929.7,2928.8,7.3245353]
[1765960606169,0.4636,2929.6,2928.8,6.8287353]
[1765960606371,1.12618023,2929.9,2928.9,0.4958]
[1765960606569,1.2038,2929.9,2928.9,0.4958]
[1765960607844,0.001,2929.8,2929.1,0.1927]
[1765960608152,0.001,2929.8,2929.2,0.4958]
[1765960608359,0.001,2929.8,2929.2,0.4918]
[1765960609860,0.001,2929.8,2929.3,6.82756972]
[1765960610063,0.4646,2929.8,2929.3,6.82756972]
[1765960610484,0.001,2929.8,2929.3,6.82756972]
[1765960610674,0.001,2929.8,2929.3,7.94615054]
[1765960610982,0.001,2929.8,2929.4,0.4958]
[1765960611962,0.001,2929.8,2929.7,3.89971876]
[1765960612159,0.3582,2929.8,2929.7,3.41331876]
[1765960612774,0.001,2929.8,2929.7,3.89971876]
[1765960613788,0.001,2929.8,2929.7,4.39551876]
[1765960614275,0.001,2929.8,2929.7,3.89971876]
[1765960614472,0.001,2929.8,2929.5,6.82706562]
[1765960614674,0.001,2929.8,2929.5,3.41351382]
[1765960614981,0.3572,2929.6,2929.5,3.41351382]
[1765960615679,0.001,2929.8,2929.5,6.82706562]
[1765960616078,0.001,2929.8,2929.7,0.4864]
[1765960616285,0.001,2929.8,2929.7,4.39551876]
[1765960616575,0.001,2929.8,2929.7,3.89971876]
[1765960618448,0.001,2929.8,2929.7,4.39551876]
[1765960618853,0.001,2929.8,2929.7,4.85695791]
[1765960619383,0.0035,2929.6,2929.3,3.95575243]
[1765960619587,0.001,2929.8,2929.4,0.4958]
[1765960619755,0.001,2929.8,2929.7,0.4864]
[1765960620197,0.3582,2929.8,2929.4,0.4958]
[1765960620882,0.3582,2929.8,2929.5,3.4135518]
[1765960621492,0.001,2929.8,2929.7,0.4864]
[1765960621696,0.001,2929.8,2929.7,0.9822]
[1765960622683,0.001,2929.8,2929.7,0.4864]
[1765960622992,0.001,2929.8,2929.7,3.89971876]
[1765960624064,0.001,2929.8,2929.7,4.39551876]
[1765960624378,0.3508,2929.7,2929.6,3.41337785]
[1765960624771,0.3529,2929.8,2929.7,3.41331876]
[1765960624972,0.3529,2929.8,2929.5,3.41352354]
[1765960625272,0.3529,2929.8,2929.5,6.82707534]
[1765960625977,0.4685,2929.8,2929.4,3.41365191]
[1765960626182,0.001,2929.8,2929.4,10.24098855]
[1765960626379,0.001,2929.8,2929.4,10.72498855]
[1765960626688,0.001,2929.8,2929.7,0.4621]
[1765960626892,0.001,2929.8,2929.7,3.87541876]
[1765960627512,0.3487,2929.8,2929.7,3.41331876]
[1765960628011,0.001,2929.8,2929.7,3.41331876]
[1765960628305,0.001,2929.8,2929.6,3.41337751]
[1765960628607,0.3477,2929.6,2929.1,0.6787]
[1765960628761,0.4673,2929.8,2929.4,3.41359017]
[1765960628960,0.4673,2929.8,2929.2,3.4139014]
[1765960629464,0.4673,2929.8,2929.2,6.8278028]
[1765960629664,0.87478816,2929.8,2929.2,6.8278028]
[1765960630276,0.4673,2929.8,2929.2,6.8278028]
[1765960630684,0.4673,2929.8,2929.2,3.4139014]
[1765960630891,0.4673,2929.8,2929.2,6.8278028]
[1765960632065,0.4673,2929.8,2929.2,7.3118028]
[1765960632597,0.4685,2929.8,2929.2,3.8760014]
[1765960632902,0.4685,2929.8,2929.2,7.2899028]
[1765960633125,0.001,2929.8,2929.2,7.2899028]
[1765960633406,0.001,2929.8,2929.4,0.484]
[1765960633614,0.001,2929.8,2929.7,0.4621]
[1765960633811,0.3487,2929.8,2929.2,6.8278028]
[1765960634012,0.815,2929.8,2929.2,6.8278028]
[1765960634213,0.4663,2929.7,2929.2,6.8278028]
[1765960635080,0.4663,2929.7,2929.2,7.3118028]
[1765960635279,0.001,2929.8,2929.2,7.3118028]
[1765960636030,0.001,2929.8,2929.7,0.4621]
[1765960636322,0.3487,2929.8,2929.7,0.4621]
[1765960636624,0.3487,2929.8,2929.4,0.484]
[1765960637423,0.3487,2929.8,2929.5,6.8271036]
[1765960637840,0.3487,2929.8,2929.5,3.4135518]
[1765960638192,0.815,2929.8,2929.5,3.4135518]
[1765960638732,0.4673,2929.8,2929.1,0.7299]
[1765960638931,0.87480502,2929.8,2929.1,0.7299]
[1765960639304,0.40850502,2929.8,2929.1,0.1879]
[1765960639508,0.4675,2929.7,2929.2,6.82778716]
[1765960641728,0.4675,2929.7,2929.2,3.41388576]
[1765960642957,0.3477,2929.3,2929.2,3.41388576]
[1765960643254,0.814,2929.2,2929.1,0.002]
[1765960650566,4.2279014,2929.2,2929.1,0.002]
[1765960651078,0.814,2929.2,2929.1,0.002]
[1765960652151,4.2279014,2929.2,2929.1,0.002]
[1765960655853,0.4943,2929.1,2928.6,0.002]
[1765960656057,0.8137,2928.7,2928.6,0.002]
[1765960656378,4.76918424,2928.7,2928.6,0.002]
[1765960657354,8.97545872,2928.7,2928.6,0.002]
[1765960657985,13.1817332,2928.7,2928.6,0.002]
[1765960658302,15.30572397,2928.7,2928.6,0.002]
[1765960658484,15.30572397,2928.7,2928.1,0.002]
[1765960658485,5.02147448,2928.2,2928.1,0.002]
[1765960658660,5.56247448,2928.2,2928.1,0.002]
[1765960659775,1.3562,2928.2,2928.1,0.002]
[1765960659974,5.56247448,2928.2,2928.1,0.002]
[1765960660181,9.5337892,2928.2,2928.1,0.002]
[1765960660495,1.057,2927.5,2927.4,0.002]
[1765960660796,1.599,2927.5,2927.4,0.002]
[1765960663173,1.057,2927.5,2927.4,0.002]
[1765960663863,4.47288385,2927.5,2927.4,0.002]
[1765960664059,1.90005644,2927.5,2927.4,0.002]
[1765960664279,1.057,2927.5,2927.4,0.002]
[1765960664655,4.47288385,2927.5,2927.4,0.002]
[1765960665159,1.057,2927.5,2927.4,0.002]
[1765960665569,0.1908,2927.7,2927.4,0.002]
[1765960665770,0.6851,2927.9,2927.4,0.002]
[1765960666971,0.1908,2927.9,2927.4,0.002]
[1765960667203,0.4943,2927.8,2927.4,0.002]
[1765960667402,0.1908,2927.9,2927.4,0.4688]
[1765960667607,0.6851,2927.9,2927.4,0.4688]
[1765960667971,0.6851,2927.9,2927.4,0.002]
[1765960668208,0.6851,2927.9,2927.4,0.4688]
[1765960668507,0.6851,2927.9,2927.5,6.8317677]
[1765960668709,1.0363,2928.1,2927.5,8.02862447]
[1765960668912,0.4943,2928.6,2927.6,0.4668]
[1765960669115,0.17832278,2928.7,2927.7,0.4668]
[1765960669116,0.4943,2928.4,2927.7,0.4668]
[1765960669315,0.4943,2928.4,2927.6,0.80306245]
[1765960670375,0.4943,2928.4,2927.5,7.2985677]
[1765960670607,0.4943,2928.3,2927.5,7.2985677]
[1765960671013,0.4943,2928.3,2927.5,6.8317677]
[1765960671387,0.4943,2928.3,2927.5,7.2985677]
[1765960672615,0.4943,2928.3,2927.5,0.4668]
[1765960673282,0.1908,2927.8,2927.4,3.41800054]
[1765960673559,0.4943,2928.0,2927.4,3.41800054]
[1765960673560,0.6851,2928.0,2927.4,3.88480054]
[1765960673763,0.6851,2928.0,2927.4,7.30080108]
[1765960673925,0.3724,2927.5,2927.4,3.41800054]
[1765960674115,0.8655,2927.5,2927.4,0.002]
[1765960677326,0.542,2927.8,2927.4,0.002]
[1765960677647,0.4943,2927.7,2927.4,0.002]
[1765960677844,0.542,2927.8,2927.4,0.4725]
[1765960678147,1.0363,2927.8,2927.4,0.4725]
[1765960678347,1.00624876,2927.8,2927.4,0.4725]
[1765960678661,0.46424876,2927.8,2927.4,0.4725]
[1765960678817,0.6851,2928.0,2927.5,3.41588385]
[1765960679015,0.4943,2927.9,2927.5,3.41588385]
[1765960679451,0.3724,2927.6,2927.5,3.41588385]
[1765960680328,0.4943,2927.9,2927.5,3.41588385]
[1765960680759,0.4943,2927.9,2927.4,3.4179503]
[1765960680760,0.4943,2927.9,2927.4,0.002]
[1765960681862,0.3724,2927.5,2927.4,0.002]
[1765960682374,0.8655,2927.5,2927.4,0.002]
[1765960683383,0.3724,2927.5,2927.4,0.002]
[1765960684773,0.4931,2927.7,2927.4,0.002]
[1765960684973,0.4793,2927.9,2927.4,0.002]
[1765960686061,0.4793,2927.9,2927.4,0.4939]
[1765960686241,0.4793,2927.9,2927.4,0.002]
[1765960687979,0.4793,2927.9,2927.4,0.4939]
[1765960688954,0.1908,2928.0,2927.4,0.002]
[1765960689155,0.4793,2927.9,2927.4,0.002]
[1765960689771,0.4793,2927.9,2927.4,0.4939]
[1765960689989,0.4793,2927.9,2927.4,0.002]
[1765960690210,0.1824,2928.2,2927.5,0.4919]
[1765960690363,0.001,2928.4,2927.6,0.03415767]
[1765960690685,0.001,2928.4,2928.3,0.4558]
[1765960690889,0.001,2928.4,2928.3,0.9477]
[1765960691382,0.001,2928.4,2928.3,4.82703088]
[1765960691690,0.001,2928.4,2928.3,5.71527069]
[1765960693981,0.001,2928.4,2928.3,6.25727069]
[1765960695786,0.001,2928.4,2928.3,6.26754783]
[1765960700304,0.001,2928.4,2928.3,6.67305183]
[1765960701827,0.001,2929.0,2928.3,6.67305183]
[1765960701828,0.001,2929.0,2928.9,0.9477]
[1765960702004,0.001,2929.0,2928.9,7.82481698]
[1765960702190,0.001,2929.0,2928.9,8.60729868]
[1765960702386,0.001,2929.0,2928.9,8.06529868]
[1765960702580,0.001,2929.0,2928.9,8.60729868]
[1765960703434,0.001,2929.6,2929.5,5.01913203]
[1765960703642,0.001,2929.6,2929.5,11.43186878]
[1765960703808,0.001,2929.6,2929.5,12.91642304]
[1765960705913,0.001,2929.6,2929.5,7.45119029]
[1765960709147,0.001,2929.6,2929.5,6.90919029]
[1765960709347,0.001,2929.6,2929.5,7.45119029]
[1765960710222,0.001,2929.6,2929.5,6.90919029]
[1765960710551,0.001,2929.6,2929.5,7.45119029]
[1765960711845,0.001,2929.6,2929.5,7.04568629]
[1765960712053,0.001,2929.6,2929.5,3.8693518]
[1765960712777,0.3729,2929.6,2929.4,0.541]
[1765960712962,0.3729,2929.6,2928.7,0.4919]
[1765960713269,0.4782,2929.5,2928.9,0.541]
[1765960713438,0.001,2929.6,2929.2,0.4919]
[1765960713635,0.001,2929.6,2929.3,3.41374592]
[1765960713842,0.4793,2929.5,2929.1,3.41398148]
[1765960714281,0.4793,2929.5,2928.9,0.541]
[1765960714773,0.4848,2929.6,2928.9,7.82440216]
[1765960715274,0.39100457,2929.6,2929.2,0.4549]
[1765960715438,0.001,2929.6,2929.5,0.4777]
[1765960715839,0.001,2929.6,2929.5,3.8912518]
[1765960716059,0.001,2929.6,2929.5,4.3461518]
[1765960716542,0.4889,2929.6,2929.3,3.41368007]
[1765960716770,0.4889,2929.6,2929.4,3.41365729]
[1765960717066,0.001,2929.6,2929.5,3.8839518]
[1765960717273,0.001,2929.6,2929.4,3.41361525]
[1765960717462,0.001,2929.6,2929.5,0.4704]
[1765960718055,0.001,2929.6,2929.5,3.8839518]
[1765960718257,0.001,2929.6,2929.5,4.3720518]
[1765960718587,0.001,2929.6,2929.5,6.19013948]
[1765960718772,0.001,2929.6,2929.5,6.60592062]
[1765960718997,0.001,2929.6,2929.5,6.57178511]
[1765960720067,0.001,2929.6,2929.5,6.57278511]
[1765960721060,0.001,2929.6,2929.5,12.03801786]
[1765960723083,0.001,2929.6,2929.5,6.57178511]
[1765960726089,0.001,2929.6,2929.5,6.10740488]
[1765960726659,0.001,2929.6,2929.5,6.57178511]
[1765960728584,0.001,2929.6,2929.5,12.03701786]
[1765960731658,0.001,2929.8,2929.7,1.364004]
[1765960731994,0.001,2929.8,2929.7,3.04045971]
[1765960732579,0.001,2929.8,2929.7,16.36596994]
[1765960732876,0.001,2929.8,2929.7,6.88402552]
[1765960733966,0.001,2929.8,2929.7,7.42502552]
[1765960735098,0.001,2929.8,2929.7,25.79166152]
[1765960739965,0.001,2930.8,2930.7,0.9585]
[1765960740395,0.001,2930.8,2930.7,4.37065409]
[1765960740813,0.001,2930.8,2930.7,3.88255409]
[1765960741025,0.001,2930.8,2930.7,3.41215409]
[1765960741395,0.001,2930.8,2930.7,4.37065409]
[1765960741783,0.001,2930.8,2930.7,3.88255409]
[1765960742423,0.3725,2930.8,2930.6,0.541]
[1765960742627,0.001,2930.8,2930.7,3.41215409]
[1765960742927,0.001,2930.8,2930.7,3.88255409]
[1765960743124,0.001,2930.8,2930.7,4.37065409]
[1765960743690,0.001,2930.8,2930.7,4.40477563]
[1765960743886,0.001,2930.8,2930.7,3.88255409]
[1765960744292,0.001,2930.8,2930.7,4.37955409]
[1765960747018,0.001,2930.8,2930.7,9.41077815]
[1765960747227,0.001,2930.8,2930.7,5.75383603]
[1765960748618,0.001,2930.8,2930.7,5.76411317]
[1765960749937,0.001,2930.8,2930.7,5.21283603]
[1765960750115,0.001,2930.8,2930.7,4.92055409]
[1765960750712,0.001,2930.8,2930.7,4.42355409]
[1765960750913,0.3209,2930.8,2930.2,0.497]
[1765960751116,0.4865,2930.7,2929.9,3.41307858]
[1765960751418,0.4939,2930.5,2930.1,3.4127818]
[1765960751615,4.19794212,2930.3,2929.5,0.002]
[1765960751820,0.4939,2930.2,2929.5,0.002]
[1765960752047,0.3142,2929.8,2929.7,3.41331156]
[1765960752250,0.4921,2930.1,2929.7,3.41331156]
[1765960752920,0.4921,2930.1,2929.5,0.002]
[1765960753126,0.80975632,2930.6,2929.8,4.19794212]
[1765960753430,0.4939,2930.7,2930.1,0.497]
[1765960753824,0.4939,2930.7,2929.7,0.541]
[1765960754147,0.4939,2930.7,2929.8,0.497]
[1765960754326,3.41304179,2930.8,2929.8,0.50727714]
[1765960754720,3.90694179,2930.8,2929.8,0.50727714]
[1765960754921,0.4939,2930.6,2929.8,0.497]
[1765960755241,0.4939,2930.5,2929.9,3.41308577]
[1765960755919,0.4939,2930.5,2929.9,6.82617154]
[1765960756156,0.4939,2930.5,2929.9,7.32317154]
[1765960756341,0.9510222,2930.7,2929.9,7.32317154]
[1765960756542,0.9510222,2930.7,2930.0,0.497]
[1765960756931,4.36318377,2930.7,2930.0,0.497]
[1765960757240,0.4571222,2930.7,2930.0,0.497]
[1765960757457,0.4939,2930.7,2930.1,3.4128528]
[1765960757950,5.45963104,2930.4,2929.5,3.41552199]
[1765960758144,0.4939,2930.3,2929.5,0.002]
[1765960758456,0.3142,2929.6,2929.5,0.002]
[1765960758757,0.3142,2929.6,2929.5,3.4155518]
[1765960759529,0.3142,2929.6,2929.5,0.002]
[1765960760160,0.4865,2929.9,2929.5,0.002]
[1765960762123,0.6928,2930.0,2929.5,0.002]
[1765960762326,0.4939,2929.9,2929.5,0.002]
[1765960766264,0.1989,2930.0,2929.5,0.499]
[1765960766587,0.6928,2930.0,2929.5,0.499]
[1765960766890,0.1989,2930.2,2929.6,3.91043528]
[1765960767086,0.1989,2930.2,2929.6,3.41343528]
[1765960767275,0.95540341,2930.2,2929.6,3.41343528]
[1765960767589,0.4939,2930.1,2929.6,7.32387056]
[1765960767784,0.4846,2929.7,2929.6,3.41343528]
[1765960767948,0.4846,2929.7,2929.5,3.95650982]
[1765960768346,0.1989,2929.9,2929.5,0.543]
[1765960768347,0.3056,2929.6,2929.5,0.543]
[1765960768550,0.3056,2929.6,2929.5,3.9565518]
[1765960768750,0.001,2930.2,2929.5,3.9565518]
[1765960768980,0.4949,2930.2,2929.5,7.8671036]
[1765960769781,0.001,2930.2,2929.6,0.497]
[1765960771005,0.001,2930.2,2929.7,3.91031876]
[1765960771396,0.001,2930.2,2929.7,7.32363752]
[1765960772309,0.4949,2930.2,2929.7,3.91031876]
[1765960772518,0.4949,2930.2,2929.5,0.543]
[1765960772713,0.73299887,2930.2,2929.6,3.41338068]
[1765960773001,0.4949,2930.2,2929.6,3.41338068]
[1765960774514,0.4949,2930.2,2929.6,6.82681596]
[1765960775008,0.678,2929.9,2929.5,3.41552967]
[1765960775176,0.4807,2929.8,2929.5,3.41552967]
[1765960776381,0.4807,2929.8,2929.5,3.41554691]
[1765960776584,0.7836,2929.6,2929.5,0.002]
[1765960776903,1.20328154,2929.6,2929.5,0.002]
[1765960778517,0.7836,2929.6,2929.5,0.002]
[1765960778823,4.19703528,2929.6,2929.5,0.002]
[1765960780429,4.60253928,2929.6,2929.5,0.002]
[1765960780632,0.4836,2929.0,2928.9,0.002]
[1765960781424,3.89773451,2929.0,2928.9,0.002]
[1765960781603,4.68300112,2929.0,2928.9,0.002]
[1765960781808,1.26886661,2929.0,2928.9,0.002]
[1765960781996,0.462,2929.2,2928.9,0.002]
[1765960782396,0.34,2929.0,2928.9,0.002]
[1765960782823,0.541,2929.6,2928.9,0.002]
[1765960782824,3.4136335,2929.5,2928.9,0.002]
[1765960783128,0.34,2929.0,2928.9,0.002]
[1765960783330,0.8008,2929.0,2928.9,0.002]
[1765960784833,0.34,2929.0,2928.9,0.002]
[1765960785612,0.8008,2929.0,2928.9,0.002]
[1765960785835,0.34,2929.0,2928.9,0.002]
[1765960786337,0.4608,2929.3,2928.9,0.002]
[1765960786500,1.003,2929.6,2928.9,0.002]
[1765960786700,0.46438023,2929.5,2928.9,0.002]
[1765960786902,0.95246453,2929.5,2928.9,0.002]
[1765960787415,0.462,2929.4,2928.9,0.002]
[1765960788300,0.462,2929.4,2928.9,0.4715]
[1765960788728,0.462,2929.6,2929.0,3.41413451]
[1765960789034,0.34,2929.1,2928.9,3.41619578]
[1765960789342,0.462,2929.3,2928.9,0.4608]
[1765960789503,0.34,2929.0,2928.9,0.002]
[1765960790098,0.8008,2929.0,2928.9,0.002]
[1765960791032,4.21493451,2929.0,2928.9,0.002]
[1765960791212,5.03192751,2929.0,2928.9,0.002]
[1765960791415,1.617793,2929.0,2928.9,0.002]
[1765960791926,0.8008,2929.0,2928.9,0.002]
[1765960792123,0.34,2929.0,2928.9,0.002]
[1765960792450,0.462,2929.4,2928.9,0.002]
[1765960792605,0.462,2929.6,2928.9,0.002]
[1765960792937,0.462,2929.5,2928.9,0.002]
[1765960793237,0.89598687,2929.5,2928.9,0.002]
[1765960793643,0.462,2929.5,2928.9,0.002]
[1765960793806,1.003,2929.8,2928.9,0.4715]
[1765960794423,0.462,2929.7,2929.0,0.4695]
[1765960794601,0.462,2929.7,2929.1,0.1916]
[1765960794807,0.462,2929.7,2929.1,0.6611]
[1765960795012,0.541,2929.8,2929.2,7.2973028]
[1765960795338,0.001,2929.5,2929.4,0.4588]
[1765960796132,0.001,2929.5,2929.4,0.9283]
[1765960796534,0.3437,2929.5,2929.2,3.4139014]
[1765960796842,0.0046,2929.3,2929.2,3.9549014]
[1765960797247,0.4618,2929.5,2929.2,3.9549014]
[1765960798021,0.001,2929.5,2929.2,3.4139014]
[1765960798946,0.001,2929.5,2929.1,6.8280018]
[1765960799337,0.4603,2929.2,2929.1,3.41398385]
[1765960799515,0.0034,2929.1,2929.0,3.41408358]
[1765960800148,0.4868,2929.4,2929.0,3.41408358]
[1765960800553,0.486,2929.4,2929.0,3.41408358]
[1765960800754,0.3182,2929.1,2929.0,3.41408358]
[1765960800937,0.0032,2929.0,2928.9,0.002]
[1765960801641,0.001,2929.5,2928.9,0.4522]
[1765960801836,0.34243496,2929.5,2928.9,0.4522]
[1765960802041,0.4972,2929.0,2928.9,0.002]
[1765960802540,0.8035,2929.0,2928.9,0.002]
[1765960802744,0.83983496,2929.5,2928.9,0.002]
[1765960803120,0.4823,2929.4,2928.9,0.002]
[1765960803321,0.4823,2929.3,2928.9,0.002]
[1765960807359,0.001,2929.5,2929.0,0.4546]
[1765960807525,0.001,2929.5,2929.4,0.4813]
[1765960807872,0.001,2929.5,2929.4,0.9359]
[1765960808225,0.001,2929.5,2929.4,4.34956832]
[1765960808560,0.001,2929.5,2929.4,5.18000329]
[1765960811155,0.001,2929.5,2929.4,5.19028043]
[1765960811844,0.001,2929.5,2929.4,5.65466066]
[1765960812045,0.001,2929.5,2929.4,6.19566066]
[1765960812939,0.001,2929.5,2929.4,6.22979734]
[1765960814034,0.001,2929.5,2929.4,6.19566066]
[1765960815560,0.001,2929.5,2929.4,6.63530134]
[1765960815743,0.001,2929.5,2929.4,6.60116466]